bitfinex/quotes_SOLUSD_20250714
["timestamp","ask_amount","ask_price","bid_price","bid_amount"]
[1752473148903,10.39991666,166.28,166.24,0.72]
[1752473149199,10.39991666,166.28,166.25,32.24]
[1752473149495,10.57991666,166.28,166.25,32.24]
[1752473149699,10.39991666,166.27,166.25,32.24]
[1752473150673,10.39991666,166.28,166.25,32.24]
[1752473151582,15.81182285,166.3,166.26,0.69]
[1752473151782,5.41190619,166.3,166.27,32.24]
[1752473152100,5.41190619,166.3,166.27,32.93]
[1752473152798,5.41190619,166.3,166.27,32.24]
[1752473153101,0.5,166.33,166.29,10.39991666]
[1752473153311,0.5,166.33,166.26,1.5258]
[1752473153312,0.5,166.33,166.31,10.39991666]
[1752473153603,5.91094698,166.33,166.32,32.24]
[1752473153900,5.91093007,166.33,166.32,32.24]
[1752473154276,0.5,166.33,166.32,32.24]
[1752473154492,5.91093007,166.33,166.32,32.24]
[1752473154873,16.31084673,166.33,166.28,0.69]
[1752473155078,10.39991666,166.32,166.29,32.24]
[1752473155301,16.49084673,166.33,166.29,32.24]
[1752473155690,10.39991666,166.31,166.29,32.24]
[1752473155905,10.39991666,166.3,166.29,32.24]
[1752473156285,10.39991666,166.31,166.29,32.24]
[1752473156802,5.91093007,166.33,166.29,32.24]
[1752473156984,10.39991666,166.32,166.29,32.93]
[1752473157179,0.5,166.33,166.3,10.39991666]
[1752473157403,0.5,166.33,166.31,43.30991666]
[1752473157602,0.5,166.33,166.32,32.22]
[1752473158199,0.5,166.33,166.32,32.91]
[1752473158815,0.5,166.33,166.32,43.30991666]
[1752473158985,0.5,166.33,166.32,32.22]
[1752473159189,0.5,166.33,166.32,32.91]
[1752473159700,0.06,166.35,166.32,32.91]
[1752473159882,5.47030239,166.35,166.32,32.22]
[1752473160207,15.87021905,166.35,166.32,32.22]
[1752473160419,5.47030239,166.35,166.32,32.22]
[1752473160588,0.06,166.35,166.33,0.69]
[1752473160787,0.06,166.35,166.34,32.22]
[1752473161288,0.06,166.35,166.34,43.30991666]
[1752473164514,0.06,166.35,166.34,32.91]
[1752473164896,0.06,166.35,166.34,32.2]
[1752473165492,10.45991666,166.35,166.34,32.2]
[1752473165716,5.47027953,166.35,166.34,32.2]
[1752473166020,0.06,166.35,166.34,32.89]
[1752473167123,0.06,166.35,166.34,43.28991666]
[1752473168593,0.06,166.35,166.34,32.89]
[1752473168909,0.06,166.35,166.34,43.28991666]
[1752473169920,15.87019619,166.35,166.34,32.2]
[1752473171009,0.06,166.35,166.34,32.2]
[1752473172211,0.06,166.35,166.34,43.28991666]
[1752473173617,0.06,166.35,166.34,32.89]
[1752473173806,0.06,166.35,166.34,43.28991666]
[1752473175624,0.06,166.35,166.34,32.89]
[1752473175800,0.06,166.35,166.34,43.28991666]
[1752473176396,0.06,166.35,166.34,132.88991666]
[1752473177608,0.06,166.35,166.34,155.94550063]
[1752473177821,0.06,166.38,166.35,16.78468397]
[1752473178000,0.06,166.38,166.37,10.39991666]
[1752473178397,0.06,166.38,166.37,11.08991666]
[1752473179331,0.06,166.38,166.37,100.68991666]
[1752473179732,0.06,166.38,166.37,117.47460063]
[1752473180231,0.06,166.38,166.37,143.47460063]
[1752473180606,0.06,166.38,166.37,149.48529967]
[1752473181408,0.06,166.38,166.37,133.48529967]
[1752473181939,0.1,166.41,166.37,143.88521633]
[1752473182108,0.1,166.41,166.4,46.79983332]
[1752473182439,0.1,166.41,166.4,169.24983332]
[1752473182604,0.1,166.41,166.4,193.72441729]
[1752473183760,0.1,166.41,166.4,140.51981666]
[1752473183904,0.1,166.41,166.4,122.43]
[1752473184105,0.1,166.41,166.4,132.82991666]
[1752473184306,0.1,166.41,166.4,132.13991666]
[1752473184506,0.1,166.41,166.4,42.53991666]
[1752473184730,0.1,166.41,166.4,32.14]
[1752473185336,10.49991666,166.41,166.36,100.68991666]
[1752473185534,10.39991666,166.4,166.37,32.14]
[1752473185814,0.1,166.41,166.37,43.22991666]
[1752473186017,0.1,166.41,166.38,11.08991666]
[1752473186309,0.1,166.41,166.39,10.39991666]
[1752473186541,0.1,166.41,166.4,10.39991666]
[1752473186748,0.1,166.41,166.4,11.08991666]
[1752473186915,0.06,166.42,166.4,21.48983332]
[1752473187118,0.06,166.42,166.41,43.22991666]
[1752473187437,0.06,166.42,166.41,43.83084208]
[1752473188106,0.06,166.42,166.41,43.22991666]
[1752473189343,0.06,166.42,166.41,149.61460063]
[1752473190133,0.06,166.42,166.41,99.99991666]
[1752473190317,0.06,166.42,166.41,132.11991666]
[1752473190839,0.06,166.42,166.41,121.72]
[1752473191138,0.06,166.42,166.41,132.11991666]
[1752473191525,0.06,166.42,166.41,132.82991666]
[1752473192338,0.06,166.42,166.41,121.72]
[1752473192739,0.06,166.42,166.41,132.11991666]
[1752473192938,0.06,166.42,166.41,132.82991666]
[1752473193635,0.06,166.42,166.41,121.72]
[1752473194221,0.06,166.42,166.41,32.12]
[1752473195137,0.06,166.42,166.41,42.51991666]
[1752473195313,0.06,166.42,166.41,32.83]
[1752473195519,0.06,166.42,166.41,32.1]
[1752473196736,0.06,166.42,166.4,10.39991666]
[1752473196938,0.06,166.42,166.41,32.1]
[1752473197310,0.06,166.42,166.41,43.20991666]
[1752473197530,0.06,166.42,166.41,42.49991666]
[1752473198038,0.06,166.42,166.41,43.20991666]
[1752473198938,0.06,166.42,166.41,43.23991666]
[1752473200234,0.06,166.42,166.41,42.52991666]
[1752473200620,0.06,166.42,166.41,32.84]
[1752473200838,0.06,166.42,166.41,43.23991666]
[1752473202426,0.06,166.42,166.41,32.13]
[1752473202837,0.06,166.42,166.41,43.23991666]
[1752473203932,0.06,166.42,166.41,11.13991666]
[1752473204132,0.06,166.42,166.41,32.11]
[1752473204534,0.06,166.42,166.41,43.21991666]
[1752473205324,0.06,166.42,166.41,0.03]
[1752473205522,0.06,166.42,166.41,32.11]
[1752473206133,0.06,166.42,166.41,32.82]
[1752473206332,0.06,166.42,166.41,43.21991666]
[1752473206532,0.06,166.42,166.41,32.82]
[1752473206856,0.06,166.42,166.41,43.21991666]
[1752473207153,0.06,166.42,166.41,39.05068352]
[1752473208141,0.06,166.42,166.41,32.11]
[1752473208830,11.97868736,166.42,166.41,0.03]
[1752473209035,12.47868736,166.42,166.41,0.03]
[1752473213055,16.64368136,166.42,166.41,0.03]
[1752473213455,20.63730293,166.42,166.41,0.03]
[1752473213830,20.63730293,166.42,166.39,32.06]
[1752473213831,37.4219869,166.42,166.39,32.06]
[1752473214033,20.79135504,166.4,166.34,0.03]
[1752473214238,10.39567752,166.35,166.34,0.03]
[1752473214439,10.39567752,166.35,166.34,32.09]
[1752473215065,15.80595705,166.35,166.34,32.09]
[1752473215635,16.08595705,166.35,166.34,32.09]
[1752473216552,0.28,166.38,166.34,32.09]
[1752473216753,10.39567752,166.36,166.34,32.09]
[1752473217150,15.80565802,166.36,166.34,32.09]
[1752473217761,10.39567752,166.35,166.34,32.09]
[1752473217944,10.67567752,166.35,166.34,32.09]
[1752473218344,10.67567752,166.35,166.34,0.03]
[1752473219044,16.08595705,166.35,166.34,0.03]
[1752473220366,15.80595705,166.35,166.34,0.03]
[1752473220742,5.40962913,166.37,166.34,0.03]
[1752473220939,10.39567752,166.36,166.34,0.03]
[1752473221146,15.80587416,166.36,166.34,0.03]
[1752473221363,10.39567752,166.35,166.34,0.03]
[1752473222256,5.41019664,166.36,166.34,0.03]
[1752473224350,10.67567752,166.35,166.34,0.03]
[1752473224587,27.46036149,166.35,166.34,0.03]
[1752473224872,27.36036149,166.35,166.34,0.03]
[1752473225375,32.77064102,166.35,166.34,0.03]
[1752473226284,22.4749635,166.35,166.34,0.03]
[1752473226606,32.87064102,166.35,166.34,0.03]
[1752473227582,16.78468397,166.34,166.31,0.03]
[1752473227784,10.39567752,166.32,166.31,0.03]
[1752473228282,27.46036149,166.32,166.31,0.03]
[1752473228592,27.46036149,166.32,166.31,1e-08]
[1752473229582,32.8716169,166.32,166.31,1e-08]
[1752473230705,22.19593938,166.32,166.31,1e-08]
[1752473230997,32.8716169,166.32,166.31,1e-08]
[1752473233866,43.26729442,166.32,166.31,1e-08]
[1752473234066,16.78468397,166.31,166.27,1e-08]
[1752473234276,27.18036149,166.28,166.27,1e-08]
[1752473234992,23.03186114,166.28,166.27,1e-08]
[1752473235585,28.44441827,166.28,166.27,1e-08]
[1752473235783,28.72441827,166.28,166.27,1e-08]
[1752473236681,28.44441827,166.28,166.27,1e-08]
[1752473237088,28.72441827,166.28,166.27,1e-08]
[1752473238087,22.1972411,166.28,166.27,1e-08]
[1752473238294,28.44441827,166.28,166.27,1e-08]
[1752473238495,28.72441827,166.28,166.27,1e-08]
[1752473239074,28.44441827,166.28,166.27,1e-08]
[1752473240609,5.41255713,166.28,166.27,0.71000001]
[1752473241808,5.47255713,166.28,166.27,0.71000001]
[1752473243718,11.7197343,166.28,166.27,1e-08]
[1752473244406,28.50441827,166.28,166.27,1e-08]
[1752473245990,22.5372411,166.28,166.27,1e-08]
[1752473246198,28.78441827,166.28,166.27,1e-08]
[1752473246383,11.7197343,166.28,166.27,1e-08]
[1752473247010,11.9997343,166.28,166.27,1e-08]
[1752473247994,5.47255713,166.28,166.27,1e-08]
[1752473248183,11.9997343,166.28,166.27,1e-08]
[1752473249202,5.75255713,166.28,166.27,1e-08]
[1752473249419,11.9997343,166.28,166.27,1e-08]
[1752473250093,11.7197343,166.28,166.27,1e-08]
[1752473250494,11.9997343,166.28,166.27,1e-08]
[1752473250793,11.9997343,166.28,166.24,1e-08]
[1752473250794,16.78468397,166.27,166.24,1e-08]
[1752473251105,29.27903831,166.25,166.24,1e-08]
[1752473251503,29.55903831,166.25,166.24,1e-08]
[1752473252718,16.78468397,166.24,166.17,0.03]
[1752473253011,6.24717717,166.18,166.17,0.03]
[1752473254293,23.03186114,166.18,166.17,0.03]
[1752473254701,28.44767531,166.18,166.17,0.03]
[1752473255205,28.72767531,166.18,166.17,0.03]
[1752473255717,33.55166767,166.18,166.17,0.03]
[1752473255895,16.78468397,166.17,166.11,0.7]
[1752473256424,6.24717717,166.12,166.11,0.7]
[1752473256801,5.41777028,166.12,166.11,0.7]
[1752473256994,19.78864358,166.16,166.11,0.7]
[1752473257315,6.24717717,166.12,166.11,0.7]
[1752473257692,6.24717717,166.13,166.11,0.7]
[1752473258113,5.41679205,166.15,166.12,0.7]
[1752473258300,11.66396922,166.15,166.12,0.7]
[1752473258493,11.66396922,166.15,166.13,0.7]
[1752473258909,6.24717717,166.14,166.13,0.7]
[1752473259116,5.41679205,166.15,166.13,0.7]
[1752473259311,6.24717717,166.14,166.13,0.7]
[1752473259620,16.78468397,166.13,166.1,0.2]
[1752473259824,6.24717717,166.11,166.1,0.9]
[1752473260489,5.41679205,166.15,166.1,0.9]
[1752473260722,6.24717717,166.13,166.11,0.7]
[1752473260896,11.6649025,166.13,166.12,0.7]
[1752473261433,6.24717717,166.15,166.12,0.7]
[1752473261590,6.24717717,166.15,166.13,0.7]
[1752473262025,6.24717717,166.14,166.11,0.7]
[1752473262192,6.24717717,166.12,166.11,0.7]
[1752473262398,6.24717717,166.12,166.1,0.2]
[1752473262606,6.24717717,166.12,166.1,0.9]
[1752473263134,5.41809644,166.11,166.1,0.9]
[1752473263424,11.66527361,166.11,166.1,0.2]
[1752473263601,11.66505252,166.12,166.1,0.9]
[1752473264400,6.24717717,166.11,166.1,0.9]
[1752473264601,11.66505252,166.12,166.1,0.9]
[1752473264899,6.24717717,166.11,166.1,0.2]
[1752473265309,11.66504784,166.12,166.1,0.9]
[1752473265713,6.24717717,166.11,166.1,0.9]
[1752473266095,11.66504784,166.12,166.1,0.9]
[1752473266495,6.24717717,166.11,166.1,0.9]
[1752473267223,11.66527361,166.11,166.1,0.9]
[1752473267393,11.66527361,166.11,166.1,0.2]
[1752473268506,6.24717717,166.13,166.1,0.9]
[1752473268696,6.24717717,166.11,166.1,0.9]
[1752473269216,11.66527361,166.11,166.1,0.9]
[1752473270292,11.66527361,166.11,166.1,0.2]
[1752473270906,12.16527361,166.11,166.1,0.2]
[1752473271719,29.22995758,166.11,166.1,1e-08]
[1752473272827,28.94995758,166.11,166.1,1e-08]
[1752473273516,12.16527361,166.11,166.1,1e-08]
[1752473273821,12.16527361,166.11,166.1,0.70000001]
[1752473274732,5.91809644,166.11,166.1,0.70000001]
[1752473275028,0.5,166.11,166.1,0.70000001]
[1752473275624,5.91809644,166.11,166.1,0.70000001]
[1752473276532,0.5,166.11,166.1,0.70000001]
[1752473277407,5.91809644,166.11,166.1,0.70000001]
[1752473277615,0.5,166.11,166.1,0.70000001]
[1752473278629,12.16527361,166.11,166.1,1e-08]
[1752473279908,12.44527361,166.11,166.1,1e-08]
[1752473282152,28.94995758,166.11,166.1,1e-08]
[1752473283040,0.5,166.11,166.1,0.65000001]
[1752473283336,12.16527361,166.11,166.1,1e-08]
[1752473283741,12.44527361,166.11,166.1,1e-08]
[1752473284037,12.16527361,166.11,166.1,1e-08]
[1752473284245,5.91809644,166.11,166.1,0.65000001]
[1752473284539,0.5,166.11,166.1,0.65000001]
[1752473284922,5.91809644,166.11,166.1,0.65000001]
[1752473285425,5.97809644,166.11,166.1,0.65000001]
[1752473285625,0.56,166.11,166.1,0.65000001]
[1752473286731,0.56,166.11,166.1,8.41027718]
[1752473287319,0.06,166.11,166.1,8.41027718]
[1752473288043,0.06,166.11,166.1,2.16310001]
[1752473290627,23.09186114,166.11,166.1,31.90000001]
[1752473290828,23.09186114,166.11,166.1,1e-08]
[1752473291429,23.37186114,166.11,166.1,1e-08]
[1752473291625,16.84468397,166.11,166.1,1e-08]
[1752473291822,23.09186114,166.11,166.1,1e-08]
[1752473292553,28.50995758,166.11,166.1,1e-08]
[1752473293049,28.78995758,166.11,166.1,1e-08]
[1752473295243,28.50995758,166.11,166.1,1e-08]
[1752473295551,0.06,166.11,166.1,0.65000001]
[1752473295947,0.06,166.11,166.1,6.89717718]
[1752473296531,0.06,166.11,166.1,0.65000001]
[1752473297351,0.06,166.11,166.1,6.89717718]
[1752473297740,0.06,166.11,166.1,0.65000001]
[1752473297942,0.06,166.11,166.1,6.89717718]
[1752473299159,0.06,166.11,166.1,0.65000001]
[1752473301557,0.06,166.11,166.1,6.89717718]
[1752473301930,0.06,166.11,166.1,0.65000001]
[1752473305051,0.06,166.11,166.1,1e-08]
[1752473305256,0.06,166.11,166.1,0.65000001]
[1752473307249,0.06,166.11,166.1,6.89717718]
[1752473307566,0.06,166.11,166.1,0.65000001]
[1752473308473,0.06,166.11,166.1,1e-08]
[1752473308968,0.06,166.11,166.1,0.65000001]
[1752473310169,0.06,166.11,166.1,6.89717718]
[1752473310566,0.06,166.11,166.1,12.96087718]
[1752473311054,9.46730292,166.18,166.11,1.5219]
[1752473311264,5.47585121,166.18,166.14,6.24717717]
[1752473311441,5.47585121,166.18,166.15,32.5]
[1752473311644,0.06,166.18,166.16,0.66]
[1752473311838,0.06,166.18,166.17,31.84]
[1752473312040,0.06,166.18,166.17,32.5]
[1752473313964,0.06,166.18,166.17,31.84]
[1752473314175,0.06,166.18,166.17,32.5]
[1752473316892,6.30717717,166.18,166.17,31.84]
[1752473317546,12.06299134,166.18,166.17,31.84]
[1752473317752,12.06299134,166.18,166.15,31.82]
[1752473317981,6.24717717,166.17,166.15,31.82]
[1752473318176,6.24717717,166.16,166.15,31.82]
[1752473318357,23.03186114,166.16,166.12,0.66]
[1752473318566,6.24717717,166.14,166.13,31.82]
[1752473319553,11.66429526,166.14,166.13,31.82]
[1752473320883,28.44897923,166.14,166.13,31.82]
[1752473321086,28.44897923,166.14,166.1,6.06370001]
[1752473321087,12.00429526,166.14,166.1,1e-08]
[1752473321258,6.24717717,166.11,166.1,1e-08]
[1752473321660,11.66527361,166.11,166.1,1e-08]
[1752473323590,10.23524679,166.13,166.1,0.66000001]
[1752473323754,6.24717717,166.14,166.1,0.66000001]
[1752473323955,6.24717717,166.15,166.1,8.57097718]
[1752473324154,15.65308901,166.16,166.11,6.24717717]
[1752473324358,11.66364322,166.16,166.12,32.46]
[1752473324588,11.66364322,166.16,166.12,31.8]
[1752473324764,11.66364322,166.16,166.13,0.66]
[1752473324958,5.41646605,166.16,166.13,0.66]
[1752473325180,5.41646605,166.16,166.12,38.04717717]
[1752473325579,6.24717717,166.13,166.12,31.8]
[1752473325879,6.24717717,166.13,166.12,32.46]
[1752473326064,5.41648176,166.16,166.12,38.70717717]
[1752473326376,5.41648176,166.16,166.13,0.66]
[1752473326594,5.41625088,166.17,166.13,6.90717717]
[1752473326764,5.41625088,166.17,166.14,0.66]
[1752473326960,5.41625088,166.17,166.13,6.24717717]
[1752473326961,5.41625088,166.17,166.15,32.46]
[1752473327186,11.66342805,166.17,166.15,32.46]
[1752473327763,6.24717717,166.16,166.15,31.8]
[1752473328690,6.30717717,166.16,166.15,31.8]
[1752473329589,11.72364322,166.16,166.15,31.8]
[1752473329999,16.78468397,166.15,166.11,0.66]
[1752473330288,16.78468397,166.15,166.13,31.78]
[1752473331291,6.24717717,166.14,166.13,31.78]
[1752473331584,0.06,166.16,166.13,31.78]
[1752473331794,6.30717717,166.16,166.14,0.66]
[1752473332480,0.06,166.16,166.15,0.66]
[1752473332867,5.47646605,166.16,166.15,0.66]
[1752473334174,11.72364322,166.16,166.13,32.44]
[1752473334373,6.24717717,166.14,166.13,32.44]
[1752473334990,6.24717717,166.14,166.13,31.78]
[1752473335373,16.78468397,166.15,166.13,32.44]
[1752473335686,6.24717717,166.14,166.13,31.78]
[1752473336968,11.66429526,166.14,166.13,31.78]
[1752473338189,11.66429526,166.14,166.13,32.44]
[1752473340577,11.66429526,166.14,166.13,31.78]
[1752473341591,11.66429526,166.14,166.1,1.66380001]
[1752473341592,41.99177446,166.14,166.1,1.66380001]
[1752473341783,6.24717717,166.11,166.1,1e-08]
[1752473344096,11.66527361,166.11,166.1,1e-08]
[1752473344393,6.24717717,166.11,166.1,1e-08]
[1752473344703,11.66499312,166.12,166.1,0.67000001]
[1752473344871,15.65697959,166.13,166.11,0.67]
[1752473345075,6.24717717,166.12,166.1,1e-08]
[1752473345398,6.24717717,166.11,166.1,1e-08]
[1752473346095,11.66527361,166.11,166.1,1e-08]
[1752473346472,5.41809644,166.11,166.1,1e-08]
[1752473346674,5.41809644,166.11,166.1,0.67000001]
[1752473346675,11.66527361,166.11,166.1,0.67000001]
[1752473347088,6.24717717,166.12,166.1,0.67000001]
[1752473347399,6.24717717,166.12,166.11,0.67]
[1752473348099,5.41809644,166.11,166.1,1e-08]
[1752473348298,11.66527361,166.11,166.1,0.67000001]
[1752473348697,11.66527361,166.11,166.1,1e-08]
[1752473350503,6.24717717,166.12,166.1,0.67000001]
[1752473350685,11.66462134,166.13,166.11,0.67]
[1752473351075,6.24717717,166.12,166.11,0.67]
[1752473351302,6.24717717,166.12,166.1,1e-08]
[1752473351502,6.24717717,166.11,166.1,0.67000001]
[1752473352500,11.66527361,166.11,166.1,1e-08]
[1752473353509,5.41809644,166.11,166.1,1e-08]
[1752473353713,11.66527361,166.11,166.1,0.67000001]
[1752473354914,6.24717717,166.13,166.1,0.67000001]
[1752473355290,6.24717717,166.13,166.1,1e-08]
[1752473355505,6.24717717,166.13,166.11,0.67]
[1752473355906,6.24717717,166.13,166.12,0.67]
[1752473356211,6.24717717,166.13,166.1,1e-08]
[1752473356503,6.24717717,166.11,166.1,0.67000001]
[1752473357100,11.66527361,166.11,166.1,0.67000001]
[1752473357306,6.24717717,166.11,166.1,0.67000001]
[1752473357508,5.41754326,166.13,166.1,0.67000001]
[1752473357707,6.24717717,166.12,166.1,0.67000001]
[1752473357900,6.24717717,166.12,166.11,0.67]
[1752473358490,11.66472043,166.13,166.11,0.67]
[1752473358909,11.66472043,166.13,166.12,0.67]
[1752473359918,11.66472043,166.13,166.1,0.67000001]
[1752473360115,6.24717717,166.12,166.1,1e-08]
[1752473360306,6.24717717,166.12,166.11,0.67]
[1752473362252,11.6650547,166.12,166.1,0.67000001]
[1752473362520,5.41787753,166.12,166.11,0.67]
[1752473362823,6.24717717,166.12,166.11,0.67]
[1752473364509,11.66494745,166.12,166.11,0.67]
[1752473364908,11.66494745,166.12,166.1,1e-08]
[1752473365107,11.66494745,166.12,166.1,0.67000001]
[1752473365324,6.24717717,166.11,166.1,1e-08]
[1752473365729,11.66527361,166.11,166.1,1e-08]
[1752473366100,11.66527361,166.11,166.1,0.67000001]
[1752473366540,11.66527361,166.11,166.1,1e-08]
[1752473368121,28.78995758,166.11,166.1,1e-08]
[1752473368321,32.7812355,166.11,166.1,1e-08]
[1752473368902,32.7812355,166.11,166.07,0.2]
[1752473368903,52.57365377,166.11,166.07,1e-08]
[1752473369227,29.27903831,166.08,166.06,1e-08]
[1752473369421,10.23845509,166.07,166.06,1e-08]
[1752473369757,16.78468397,166.06,166.03,0.03]
[1752473369922,16.78468397,166.01,165.96,0.2]
[1752473370128,6.24717717,165.97,165.96,31.88]
[1752473371027,6.24717717,165.97,165.96,32.55]
[1752473371242,6.24717717,165.97,165.96,31.88]
[1752473371602,6.24717717,165.97,165.96,32.57]
[1752473371806,18.97361763,166.02,165.96,32.57]
[1752473371807,6.24717717,165.99,165.96,32.57]
[1752473372108,6.24717717,166.01,165.97,0.69]
[1752473372306,6.24717717,166.02,165.97,6.93717717]
[1752473372514,6.24717717,166.03,165.98,0.69]
[1752473372711,6.24717717,166.02,165.98,6.93717717]
[1752473372912,6.24717717,166.02,165.99,0.69]
[1752473373125,6.24717717,166.02,166.0,32.37]
[1752473373515,6.24717717,166.02,166.01,0.69]
[1752473374119,6.24717717,166.03,166.01,0.69]
[1752473374507,5.4200542,166.05,166.02,0.69]
[1752473374508,6.24717717,166.04,166.02,0.69]
[1752473374722,11.66698129,166.06,166.03,0.69]
[1752473374924,6.24717717,166.05,166.01,6.265778]
[1752473375314,22.88406561,166.08,166.01,12.51295517]
[1752473375615,6.24717717,166.06,166.02,1.651]
[1752473376018,5.41876804,166.09,166.02,7.89817717]
[1752473376221,6.24717717,166.08,166.03,6.24717717]
[1752473376422,6.24717717,166.08,166.04,31.68]
[1752473376905,6.24717717,166.08,166.05,0.69]
[1752473378616,6.24717717,166.08,166.03,6.24717717]
[1752473378816,6.24717717,166.08,166.04,32.37]
[1752473379332,6.24717717,166.08,166.05,0.69]
[1752473379540,11.66594521,166.09,166.06,0.69]
[1752473380812,5.47774079,166.13,166.07,0.69]
[1752473381012,6.24717717,166.12,166.08,31.68]
[1752473381232,6.24717717,166.1,166.08,31.68]
[1752473381537,6.24717717,166.09,166.08,31.68]
[1752473381743,6.92717717,166.09,166.08,31.68]
[1752473381941,12.34592604,166.09,166.08,31.68]
[1752473382620,29.13061001,166.09,166.08,31.68]
[1752473383034,42.67748218,166.09,166.02,1.651]
[1752473383343,6.24717717,166.03,166.02,1.651]
[1752473383635,6.24717717,166.03,166.01,31.66]
[1752473383843,6.24717717,166.02,166.01,31.66]
[1752473384710,11.66821078,166.02,166.01,31.66]
[1752473386727,29.13289475,166.02,165.98,1.5042]
[1752473386924,6.24717717,165.99,165.98,33.1642]
[1752473387217,6.24717717,165.99,165.98,31.66]
[1752473388663,5.42266674,165.97,165.96,0.2]
[1752473388846,11.66984391,165.97,165.96,0.2]
[1752473390055,0.68,166.02,165.96,0.89]
[1752473390359,6.24717717,165.98,165.96,0.89]
[1752473390972,11.66955129,165.98,165.96,0.89]
[1752473391533,16.78468397,166.03,165.97,0.69]
[1752473391740,6.24717717,166.0,165.97,0.69]
[1752473392309,6.24717717,165.99,165.97,0.69]
[1752473392631,6.24717717,165.98,165.96,0.2]
[1752473392873,11.66984391,165.97,165.96,31.86]
[1752473398571,12.34984391,165.97,165.96,31.86]
[1752473398769,11.66984391,165.97,165.96,31.86]
[1752473399362,5.42260968,165.98,165.96,31.86]
[1752473399578,6.24717717,165.97,165.96,31.86]
[1752473399758,11.66978685,165.98,165.96,32.55]
[1752473400268,6.24717717,165.97,165.96,32.55]
[1752473400665,11.66984391,165.97,165.96,31.86]
[1752473400889,29.13452788,165.97,165.96,0.2]
[1752473401971,16.78468397,165.96,165.9,0.03]
[1752473402158,23.03186114,165.91,165.9,0.03]
[1752473402560,11.67180498,165.91,165.9,0.03]
[1752473404190,12.32180498,165.91,165.9,0.03]
[1752473404364,29.10648895,165.91,165.9,0.03]
[1752473406259,16.78468397,165.9,165.87,31.64]
[1752473406487,23.03186114,165.88,165.84,31.64]
[1752473406692,6.24717717,165.85,165.84,31.64]
[1752473406892,11.67376746,165.85,165.84,31.64]
[1752473407084,12.32376746,165.85,165.8,0.91]
[1752473407261,6.24717717,165.81,165.8,0.91]
[1752473407461,6.24717717,165.81,165.8,32.55]
[1752473408185,6.24717717,165.81,165.8,31.84]
[1752473409093,11.67507657,165.81,165.8,31.84]
[1752473409993,6.24717717,165.81,165.8,31.84]
[1752473410971,11.67507657,165.81,165.8,31.84]
[1752473411372,12.32507657,165.81,165.68,26.0]
[1752473411572,6.24717717,165.75,165.71,0.71]
[1752473411872,16.78468397,165.79,165.71,0.71]
[1752473412078,6.24717717,165.76,165.71,6.95717717]
[1752473412293,16.78468397,165.79,165.73,6.24717717]
[1752473412595,6.24717717,165.81,165.76,6.24717717]
[1752473412793,6.24717717,165.81,165.77,32.35]
[1752473413098,6.24717717,165.81,165.78,0.71]
[1752473413277,6.24717717,165.81,165.79,0.71]
[1752473413781,6.24717717,165.82,165.8,0.71]
[1752473413978,6.24717717,165.82,165.81,31.64]
[1752473414886,11.67474923,165.82,165.81,31.64]
[1752473415072,6.24717717,165.83,165.81,31.64]
[1752473415472,22.21155964,165.85,165.82,0.71]
[1752473415684,6.24717717,165.84,165.82,0.71]
[1752473416181,5.42687567,165.85,165.79,0.71]
[1752473416381,6.24717717,165.83,165.8,32.35]
[1752473416668,6.24717717,165.81,165.75,1.5158]
[1752473416978,6.24717717,165.8,165.77,0.71]
[1752473417177,6.24717717,165.8,165.78,0.71]
[1752473417588,11.67509928,165.81,165.79,31.64]
[1752473417792,11.67509928,165.81,165.8,31.64]
[1752473417992,5.42792211,165.81,165.8,31.64]